bitfinex/quotes_ETHUSD_20220310
["timestamp","ask_amount","ask_price","bid_price","bid_amount"]
[1646954734672,0.06596322,2613.7,2612.9,3.5]
[1646954734874,0.00390887,2613.2,2613.1,0.95686]
[1646954735076,0.00390887,2613.2,2613.1,4.91686]
[1646954735273,0.00390887,2613.2,2613.1,6.21686]
[1646954735879,0.06045329,2613.9,2613.3,0.95683]
[1646954736078,0.01,2614.0,2613.4,3.5]
[1646954736281,0.06212806,2614.1,2613.3,0.46]
[1646954736479,0.06212806,2614.1,2613.3,0.76]
[1646954736879,0.06212806,2614.1,2613.4,3.5]
[1646954737080,0.06212806,2614.1,2613.4,4.4568]
[1646954737081,0.20222806,2614.1,2613.4,4.4568]
[1646954737281,0.00406751,2613.8,2613.5,0.9567789]
[1646954737483,0.00406751,2613.8,2613.5,2.8703589]
[1646954738331,0.06212806,2614.1,2613.3,3.6304476]
[1646954738531,0.00405121,2613.8,2613.3,3.67357]
[1646954738937,0.00405121,2613.8,2613.4,4.45689]
[1646954739133,0.00405121,2613.8,2613.4,1.25689]
[1646954739534,0.2027159,2614.3,2613.4,1.25689]
[1646954739834,0.00387081,2613.7,2613.5,3.5]
[1646954740238,0.00387081,2613.7,2613.5,0.95682]
[1646954740638,0.06064506,2614.0,2613.5,0.95682]
[1646954740839,0.1401,2614.4,2613.6,0.95681]
[1646954741040,0.00387081,2613.7,2613.6,0.95681]
[1646954741445,0.00387081,2613.7,2613.6,1.41681]
[1646954741977,0.1401,2614.3,2613.7,0.95675]
[1646954742175,0.00387795,2613.8,2613.7,0.95675]
[1646954743076,0.1401,2614.3,2613.7,0.95675]
[1646954743378,0.00389052,2613.9,2613.7,1.9135009]
[1646954744375,0.1401,2614.3,2613.7,1.9135009]
[1646954744577,0.00389048,2613.9,2613.7,1.9135009]
[1646954745531,0.05540285,2614.4,2613.7,1.9135009]
[1646954745734,0.00388956,2613.9,2613.7,1.9135009]
[1646954745932,0.00388956,2613.9,2613.7,0.23031373]
[1646954746538,0.00388956,2613.9,2613.6,1.41681]
[1646954746732,0.05804845,2614.3,2613.6,1.41681]
[1646954746932,0.00388847,2613.9,2613.6,0.46]
[1646954747933,0.05804845,2614.3,2613.6,0.46]
[1646954748135,0.00388851,2613.9,2613.6,0.46]
[1646954748434,1.08827173,2613.7,2613.5,0.5]
[1646954748837,0.05994103,2613.6,2613.5,0.5]
[1646954754324,0.00388886,2613.7,2613.5,0.5]
[1646954755127,1.57821501,2613.7,2613.5,0.5]
[1646954755325,0.06040457,2613.6,2613.5,0.5]
[1646954755528,1.63861958,2613.6,2613.5,0.5]
[1646954757775,0.06040457,2613.6,2613.5,0.5]
[1646954758277,0.70209317,2614.6,2613.6,1.5]
[1646954758482,1.62943696,2614.6,2613.7,3.5]
[1646954758682,0.05350607,2614.9,2613.7,4.4512]
[1646954758880,1.08499317,2615.2,2613.7,4.4512]
[1646954758881,1.57783374,2614.8,2613.7,7.3611]
[1646954759080,1.08499317,2615.2,2613.8,0.06932676]
[1646954759081,0.43216764,2615.2,2613.8,0.06932676]
[1646954759285,0.43216764,2615.2,2614.2,0.95643]
[1646954759286,1.57763809,2615.1,2614.2,0.95643]
[1646954759580,1.57763809,2615.1,2614.4,1.03054204]
[1646954759782,1.57763809,2615.1,2614.5,4.04219612]
[1646954760180,1.57763809,2615.0,2614.5,5.04219612]
[1646954760436,9.2166,2615.7,2614.6,0.08688175]
[1646954760437,0.70209317,2615.6,2614.6,0.08688175]
[1646954760631,1.57754779,2615.6,2614.8,1.91253]
[1646954760831,1.57754779,2615.6,2614.9,0.54313294]
[1646954761031,1.57754779,2615.5,2615.0,0.07389456]
[1646954761229,1.57754779,2615.5,2615.1,0.46]
[1646954761431,0.00226512,2615.3,2615.2,0.9563]
[1646954761631,0.00226512,2615.3,2615.2,1.4163]
[1646954762031,0.00226512,2615.3,2615.2,1.4149767]
[1646954762230,1.57754779,2615.5,2615.2,4.9149767]
[1646954762430,8.03209317,2616.3,2615.3,0.06988088]
[1646954762631,0.00226512,2615.4,2615.3,0.06988088]
[1646954762830,0.00226512,2615.4,2615.3,0.52988088]
[1646954763230,0.00226512,2615.4,2615.3,4.02988088]
[1646954763730,0.00449134,2615.5,2615.4,0.08397035]
[1646954763931,0.00449134,2615.5,2615.4,0.54397035]
[1646954764872,0.05035806,2616.2,2615.5,0.95623]
[1646954765072,0.00448726,2615.6,2615.5,1.41623]
[1646954765272,0.00448726,2615.6,2615.5,2.37245]
[1646954765875,0.04035806,2616.2,2615.5,0.69004373]
[1646954766077,0.92370106,2615.9,2615.5,1.15004373]
[1646954766278,0.00448718,2615.7,2615.5,1.15004373]
[1646954766778,0.00448718,2615.7,2615.5,0.46]
[1646954767179,0.92370106,2615.9,2615.5,0.46]
[1646954767377,0.00448714,2615.7,2615.5,0.46]
[1646954767578,1.57725911,2615.6,2615.5,0.46]
[1646954768226,0.00448714,2615.7,2615.5,0.46]
[1646954768426,0.92370106,2615.9,2615.5,0.46]
[1646954768626,1.57717667,2615.8,2615.5,0.46]
[1646954768829,0.00449117,2615.7,2615.5,0.46]
[1646954769027,0.02695477,2615.6,2615.5,0.46]
[1646954769827,0.02695477,2615.6,2615.3,1.0]
[1646954770031,1.11874927,2615.4,2615.3,1.0]
[1646954772076,1.11874927,2615.4,2615.3,1.5]
[1646954773078,0.02695477,2615.6,2615.3,1.5]
[1646954773275,0.02695477,2615.6,2615.3,2.45637]
[1646954773476,0.00403136,2615.5,2615.3,2.45637]
[1646954774077,0.0534844,2615.4,2615.3,2.45637]
[1646954777031,0.0534844,2615.4,2615.3,2.91637]
[1646954780581,0.0534844,2615.4,2615.3,3.00450255]
[1646954784331,0.0534844,2615.4,2615.3,1.5]
[1646954784733,1.63072355,2615.4,2615.3,1.5]
[1646954785540,0.0534844,2615.4,2615.3,1.5]
[1646954785939,0.0534844,2615.4,2615.1,1.07407336]
[1646954786140,0.0534844,2615.4,2615.1,2.49050336]
[1646954786439,0.0534844,2615.4,2615.1,2.57042514]
[1646954786677,0.05735825,2615.4,2615.1,6.07042514]
[1646954786877,0.05735825,2615.4,2615.1,8.02675514]
[1646954787077,0.05735825,2615.4,2615.2,0.07652649]
[1646954787277,0.05735825,2615.4,2615.3,0.46]
[1646954787478,0.0534844,2615.4,2615.3,0.46]
[1646954787884,0.05735821,2615.4,2615.3,0.46]
[1646954788679,0.0534844,2615.4,2615.3,0.46]
[1646954789279,0.08057825,2615.4,2615.3,0.46]
[1646954789681,0.08057825,2615.4,2615.3,1.46]
[1646954797780,0.08057825,2615.4,2615.3,4.96]
[1646954798032,0.08057825,2615.4,2615.3,5.96]
[1646954798231,0.08057825,2615.4,2615.3,2.46]
[1646954798438,0.08057825,2615.4,2615.3,1.46]
[1646954800836,1.65765562,2615.4,2615.3,1.46]
[1646954801040,0.08057825,2615.4,2615.3,1.46]
[1646954801675,1.65765203,2615.4,2615.3,1.46]
[1646954804678,1.57707378,2615.4,2615.3,1.46]
[1646954804878,0.94056133,2616.0,2615.3,1.46]
[1646954804879,0.70796644,2616.0,2615.5,0.95625]
[1646954805080,2.35988815,2616.5,2615.5,0.95625]
[1646954805081,0.70796644,2616.5,2615.6,9.71926033]
[1646954805278,1.70796644,2616.6,2615.7,0.632]
[1646954805535,0.04149491,2616.4,2615.9,6.129]
[1646954805737,0.3928036,2616.9,2616.1,1.982]
[1646954805738,0.70796644,2616.8,2616.1,1.982]
[1646954805940,0.0102036,2616.9,2616.2,6.25318]
[1646954806140,0.0102036,2616.9,2616.2,18.40418]
[1646954806340,0.0102036,2616.9,2616.4,0.382]
[1646954806535,0.0102036,2616.9,2616.5,4.9155808]
[1646954806735,0.0102036,2616.9,2616.5,5.2155808]
[1646954806934,0.0102036,2616.9,2616.6,0.95563]
[1646954806935,0.00197637,2616.8,2616.6,0.95563]
[1646954807134,0.00197637,2616.8,2616.7,0.46]
[1646954807338,0.00197637,2616.8,2616.6,0.4413538]
[1646954807637,0.00197637,2616.8,2616.7,0.54706726]
[1646954807834,0.0102036,2616.9,2616.7,0.54706726]
[1646954808034,0.0102036,2616.9,2616.8,0.08001784]
[1646954808234,0.0102036,2616.9,2616.8,0.54001784]
[1646954809777,0.07581034,2616.9,2616.8,0.54001784]
[1646954814655,0.09568237,2616.9,2616.8,0.54001784]
[1646954815456,0.99003995,2616.9,2616.8,0.54001784]
[1646954817280,0.09568237,2616.9,2616.8,0.54001784]
[1646954822130,0.09568237,2616.9,2616.4,0.0748892]
[1646954822932,0.87899332,2616.7,2616.4,0.0748892]
[1646954823132,0.87899332,2616.7,2616.0,0.08832226]
[1646954824032,0.00408594,2616.6,2616.0,0.0924092]
[1646954824778,1.57669336,2616.6,2616.0,0.08832226]
[1646954824983,1.57669336,2616.5,2616.0,0.09258777]
[1646954825886,1.57669336,2616.5,2616.0,0.08832226]
[1646954825887,1.07917794,2616.3,2616.0,0.08832226]
[1646954826083,1.57669336,2616.2,2616.0,0.08832226]
[1646954826684,1.07917794,2616.3,2616.0,0.08832226]
[1646954826685,1.57673678,2616.1,2616.0,0.08832226]
[1646954827090,1.57673678,2616.2,2616.0,0.08832226]
[1646954827284,1.57673678,2616.2,2615.7,0.191]
[1646954827285,1.57673678,2616.1,2615.8,0.077713]
[1646954827485,1.57673678,2616.0,2615.7,0.41000829]
[1646954827684,0.04751546,2616.2,2615.7,0.191]
[1646954827929,0.71203727,2616.6,2615.7,0.191]
[1646954827930,1.03112258,2615.9,2615.7,0.191]
[1646954828128,1.57680662,2615.8,2615.7,0.191]
[1646954828328,1.57680662,2615.8,2615.3,3.9291]
[1646954828528,0.04821818,2615.7,2615.3,1.0]
[1646954828728,1.57680662,2615.6,2615.3,1.0]
[1646954828929,0.04821818,2615.7,2615.3,1.0]
[1646954829132,1.57697902,2615.6,2615.3,1.0]
[1646954830329,0.04821818,2615.7,2615.3,1.0]
[1646954830532,1.57696014,2615.6,2615.3,1.0]
[1646954831135,1.57696014,2615.6,2615.4,0.00227134]
[1646954831534,0.0536465,2615.5,2615.4,0.00227134]
[1646954831978,0.04270187,2615.8,2615.3,1.95627]
[1646954832181,1.03112258,2615.9,2615.3,1.96078837]
[1646954832182,0.05054565,2615.6,2615.3,1.96078837]
[1646954832384,0.02830961,2616.2,2615.4,5.56]
[1646954832580,0.02830961,2616.2,2615.5,1.04494079]
[1646954832781,0.02830961,2616.2,2615.7,1.02642892]
[1646954832980,0.02830961,2616.2,2615.8,4.03489141]
[1646954833184,0.02830961,2616.2,2615.9,3.33377698]
[1646954833387,0.3922036,2616.9,2615.9,3.33377698]
[1646954833388,0.3922036,2616.9,2616.1,1.982]
[1646954833588,0.3922036,2616.9,2616.2,16.07814754]
[1646954833589,0.00451684,2616.5,2616.2,16.07814754]
[1646954833783,0.00451684,2616.5,2616.3,12.12056952]
[1646954833983,0.00451684,2616.5,2616.4,4.342]
[1646954834387,0.3922036,2616.9,2616.4,6.17166256]
[1646954834583,0.00225382,2616.6,2616.5,1.99323179]
[1646954834783,0.00225382,2616.6,2616.5,5.8711892]
[1646954834988,0.00225382,2616.6,2616.5,6.1711892]
[1646954835186,0.00225382,2616.6,2616.5,7.1711892]
[1646954835431,0.00225382,2616.6,2616.5,8.1267992]
[1646954835637,0.0102036,2616.9,2616.6,2.86683]
[1646954835837,0.0102036,2616.9,2616.6,6.41122]
[1646954835838,0.00443628,2616.7,2616.6,6.41122]
[1646954836037,0.00443628,2616.7,2616.6,6.87122]
[1646954836737,0.0102036,2616.9,2616.6,6.87122]
[1646954836937,0.0044362,2616.8,2616.6,8.78246]
[1646954837341,0.0044362,2616.8,2616.7,0.3]
[1646954837542,0.0044362,2616.8,2616.7,0.76]
[1646954837938,0.0102036,2616.9,2616.7,0.76]
[1646954838138,0.0102036,2616.9,2616.7,1.7157215]
[1646954838339,0.01463971,2616.9,2616.7,1.7157215]
[1646954838739,0.01463971,2616.9,2616.8,0.95567]
[1646954838938,0.01463971,2616.9,2616.8,1.41567]
[1646954839189,0.0102036,2616.9,2616.8,1.41567]
[1646954839386,0.03428521,2616.9,2616.8,1.41567]
[1646954839584,0.03428521,2616.9,2616.8,4.91567]
[1646954839885,0.03428521,2616.9,2616.8,2.41567]
[1646954840090,0.03428521,2616.9,2616.8,5.91567]
[1646954840784,0.03428521,2616.9,2616.8,2.41567]
[1646954841184,0.03428521,2616.9,2616.8,1.41567]
[1646954841385,0.03428521,2616.9,2616.8,4.91567]
[1646954841586,0.03428521,2616.9,2616.8,1.41567]
[1646954841786,0.03428521,2616.9,2616.8,5.91567]
[1646954842692,0.03428521,2616.9,2616.8,3.90747]
[1646954843137,0.03428521,2616.9,2616.8,7.40747]
[1646954843744,0.08197779,2616.9,2616.8,3.90747]
[1646954844041,0.08197779,2616.9,2616.8,2.79767]
[1646954844241,0.08197779,2616.9,2616.8,1.79767]
[1646954844541,0.08197779,2616.9,2616.8,2.79767]
[1646954844843,0.08197779,2616.9,2616.8,0.46]
[1646954845845,0.08197779,2616.9,2616.6,0.0876056]
[1646954846047,0.08197779,2616.9,2616.5,0.95559]
[1646954846246,0.08197779,2616.9,2616.6,0.46]
[1646954847578,0.08197779,2616.9,2616.5,0.47047294]
[1646954847782,0.08197779,2616.9,2616.4,0.46]
[1646954847783,0.08650862,2616.9,2616.4,0.46]
[1646954848781,0.08197779,2616.9,2616.4,0.46]
[1646954848980,0.00453092,2616.8,2616.4,0.46]
[1646954849178,0.00453092,2616.8,2616.4,1.4158425]
[1646954849382,0.00453092,2616.8,2616.5,0.3]
[1646954849583,0.00453092,2616.8,2616.5,0.46]
[1646954849987,0.83544119,2616.9,2615.8,0.07861758]
[1646954850185,0.83544119,2616.9,2615.4,0.08928848]
[1646954850186,0.70796644,2616.5,2615.4,0.08928848]
[1646954850446,0.70796644,2616.5,2615.3,3.9303]
[1646954850447,0.04264895,2616.4,2615.8,0.00453267]
[1646954850639,0.04360903,2616.3,2615.8,0.00453267]
[1646954851240,1.09884503,2616.0,2615.5,0.08906086]
[1646954851441,1.09884503,2616.0,2615.8,0.00453215]
[1646954852441,1.09884503,2616.0,2615.3,1.08036971]
[1646954852442,1.57701152,2615.9,2615.3,1.08036971]
[1646954852641,1.57701152,2615.9,2615.8,0.00453202]
[1646954853641,1.57701152,2615.9,2615.3,1.0]
[1646954853841,0.75157547,2616.3,2615.7,0.00453207]
[1646954853842,1.57701152,2615.8,2615.7,0.00453207]
[1646954854042,1.57701152,2616.1,2615.7,0.00453207]
[1646954854288,1.61908424,2616.0,2615.7,0.00453207]
[1646954854487,1.57701152,2615.9,2615.7,0.00453207]
[1646954854886,1.57701152,2615.9,2615.3,0.992273]
[1646954855086,1.57701152,2615.9,2615.7,0.00437915]
[1646954856092,1.57701152,2615.9,2615.3,1.948493]
[1646954856291,1.57701152,2615.9,2615.7,0.00437915]
[1646954857291,1.57701152,2615.9,2615.3,1.948493]
[1646954857492,1.57701152,2615.9,2615.7,0.00437915]
[1646954858531,1.57701152,2615.9,2615.3,0.95622]
[1646954858729,1.57701152,2615.9,2615.7,0.0042096]
[1646954859031,0.02391185,2615.8,2615.7,0.0042096]
[1646954859229,1.60092337,2615.8,2615.7,0.0042096]
[1646954859629,1.60092337,2615.8,2615.1,1.91243]
[1646954859830,1.57697821,2615.7,2615.6,0.00420963]
[1646954860029,0.02391185,2615.8,2615.6,0.00420963]
[1646954860838,0.02391185,2615.8,2615.2,0.08709021]
[1646954861034,1.57697713,2615.7,2615.6,0.00420967]
[1646954861333,0.02391185,2615.8,2615.6,0.00420967]
[1646954862082,0.02391185,2615.8,2615.2,0.08709021]
[1646954862381,0.02391185,2615.8,2615.6,0.00422112]
[1646954862782,1.77236018,2616.6,2615.7,1.6]
[1646954862984,2.7651753,2616.9,2615.8,4.03810662]
[1646954863286,1.57661862,2616.8,2616.4,0.01280009]
[1646954863492,0.0102036,2616.9,2616.5,0.46]
[1646954863688,0.0102036,2616.9,2616.7,0.07159859]
[1646954863890,0.0102036,2616.9,2616.8,0.46]
[1646954864088,0.0102036,2616.9,2616.8,0.52892819]
[1646954864690,1.5567236,2616.9,2616.8,0.46]
[1646954864890,1.5567236,2616.9,2616.5,0.07046414]
[1646954865092,2.57088079,2616.8,2616.5,0.07046414]
[1646954865289,1.54652,2616.7,2616.5,0.07046414]
[1646954865538,1.54652,2616.7,2616.0,1.1839]
[1646954865539,1.54652,2616.7,2616.1,0.08781378]
[1646954865739,1.54652,2616.7,2615.8,3.3687]
[1646954865740,1.52705066,2616.7,2615.8,3.3687]
[1646954865938,4.7,2616.3,2615.7,0.46]
[1646954866140,4.7,2616.3,2615.3,1.9124]
[1646954866141,3.52471015,2616.2,2615.2,0.69974157]
[1646954866336,3.52471015,2616.2,2615.0,1.2142]
[1646954866337,0.04182854,2615.7,2615.0,1.2142]
[1646954866637,3.66532364,2616.2,2614.9,0.00949241]
[1646954866638,0.24159262,2616.1,2614.9,0.00949241]
[1646954866835,0.24159262,2616.1,2614.8,4.19322]
[1646954866836,1.19814262,2616.1,2614.8,4.19322]
[1646954867036,0.04358618,2615.9,2614.8,4.19322]
[1646954867236,0.9949221,2615.8,2614.8,4.65322]
[1646954867440,0.0535523,2615.7,2614.8,4.65322]
[1646954868040,0.0535523,2615.7,2614.8,5.65322]
[1646954868237,0.0535523,2615.7,2614.8,6.6096717]
[1646954869201,0.0535523,2615.7,2614.9,0.95645]
[1646954870796,0.0535523,2615.7,2615.2,0.0046277]
[1646954871594,0.0535523,2615.7,2615.0,0.95641]
[1646954871795,0.0535523,2615.7,2615.3,0.00235898]
[1646954872495,0.84275573,2615.4,2615.3,0.00235898]
[1646954872935,0.0535523,2615.7,2614.8,3.8692717]
[1646954873145,0.04243212,2615.9,2614.8,3.8692717]
[1646954874338,0.84126024,2615.7,2614.8,3.8692717]
[1646954874537,0.05193433,2615.6,2614.8,3.8692717]
[1646954874736,0.0721562,2615.6,2614.8,3.8692717]
[1646954874937,3.5721562,2615.6,2614.8,3.8692717]
[1646954875137,0.0721562,2615.6,2614.8,3.8692717]
[1646954875545,0.0721562,2615.6,2615.1,0.00464236]
[1646954876544,0.0721562,2615.6,2614.8,3.8692717]
[1646954876796,0.0721562,2615.6,2615.2,0.00464222]
[1646954877696,0.0721562,2615.6,2614.9,0.95644]
[1646954877896,0.0721562,2615.6,2615.3,0.00464218]
[1646954878909,0.0721562,2615.6,2614.9,0.95644]
[1646954879103,0.0721562,2615.6,2615.3,0.00464213]
[1646954879704,3.5721562,2615.6,2615.3,0.00464213]
[1646954880004,3.5721562,2615.6,2614.8,3.8692717]
[1646954880005,0.0721562,2615.6,2614.8,2.91282]
[1646954880203,0.0721562,2615.6,2614.8,1.91282]
[1646954880436,0.0721562,2615.6,2615.3,0.00450287]
[1646954881238,0.0721562,2615.6,2614.8,2.91282]
[1646954881444,0.0721562,2615.6,2615.3,0.00450287]
[1646954882440,0.0721562,2615.6,2614.8,1.91282]
[1646954882641,0.0721562,2615.6,2615.3,0.00450287]
[1646954883742,0.0721562,2615.6,2614.7,2.2142]
[1646954884047,0.0721562,2615.6,2615.3,0.00431976]
[1646954884885,0.0721562,2615.6,2614.7,1.2142]
[1646954885085,0.95561836,2615.4,2615.3,0.00431976]
[1646954886091,0.95561836,2615.4,2614.7,1.2142]
[1646954886293,0.0487705,2615.3,2615.2,0.00431984]
[1646954887292,0.0487705,2615.3,2614.7,1.2142]
[1646954887491,0.0487705,2615.3,2615.1,0.0043284]
[1646954888536,0.0487705,2615.3,2614.7,1.2142]
[1646954888735,0.0487705,2615.3,2615.1,0.00432844]
[1646954889737,0.07234738,2615.4,2614.7,1.29388158]
[1646954889937,0.07234738,2615.4,2615.1,0.00432844]
[1646954890942,0.07234738,2615.4,2614.9,0.95642]
[1646954891143,0.07234738,2615.4,2615.1,0.00432784]
[1646954891994,0.07234738,2615.4,2614.9,0.95642]
[1646954892386,0.07234738,2615.4,2615.1,0.00432784]
[1646954893188,0.07234738,2615.4,2614.9,0.95642]
[1646954893589,0.07234738,2615.4,2615.1,0.00432784]
[1646954894595,0.07234738,2615.4,2614.9,0.95642]
[1646954894792,0.07234738,2615.4,2615.1,0.00432787]
[1646954894990,1.57708142,2615.3,2615.1,0.00432787]
[1646954895637,1.57708142,2615.3,2614.7,1.29388158]
[1646954896038,1.57708142,2615.3,2615.1,0.00432791]
[1646954896943,1.57708142,2615.3,2614.7,1.29388158]
[1646954897146,1.57708142,2615.3,2615.1,0.00432791]
[1646954897342,0.07234738,2615.4,2615.1,0.00432791]
[1646954898041,0.07234738,2615.4,2614.7,4.22404052]
[1646954898042,0.07234738,2615.4,2614.7,4.20672628]
[1646954898243,0.07234738,2615.4,2615.1,0.00432787]
[1646954898845,0.02424383,2615.2,2615.1,0.00432787]
[1646954899289,0.02424383,2615.2,2615.0,0.95639]
[1646954899484,0.02424383,2615.2,2615.0,0.96071795]
[1646954900592,0.02424383,2615.2,2615.0,0.95639]
[1646954900789,0.02424383,2615.2,2615.0,0.96071799]
[1646954901191,0.02424383,2615.2,2615.0,0.00432799]
[1646954901590,0.02424383,2615.2,2614.7,1.29388158]
[1646954901991,0.02424383,2615.2,2615.0,0.00432799]
[1646954902791,0.02424383,2615.2,2614.7,1.29388158]
[1646954903232,0.02424383,2615.2,2615.0,0.00432799]
[1646954903835,0.02371105,2615.2,2615.0,0.00432799]
[1646954904035,0.02371105,2615.2,2614.7,1.29388158]
[1646954904335,0.02371105,2615.2,2615.0,0.00432799]
[1646954905338,0.02371105,2615.2,2614.8,1.0]
[1646954905537,0.02371105,2615.2,2615.0,0.00432799]
[1646954906437,0.02371105,2615.2,2614.7,3.20670688]
[1646954906684,0.02371105,2615.2,2615.0,0.00432799]
[1646954906885,1.105e-05,2615.2,2615.0,0.00432799]
[1646954907086,0.04856431,2615.4,2615.1,0.46]
[1646954907291,0.04856431,2615.4,2615.2,0.08562591]
[1646954907990,0.04856431,2615.4,2615.2,0.08995375]
[1646954908888,0.04856431,2615.4,2615.2,0.08562591]
[1646954909088,0.04856431,2615.4,2615.2,0.08767458]
[1646954909794,0.87449565,2615.8,2615.2,1.04397458]
[1646954909991,1.57690111,2615.7,2615.2,4.54192591]
[1646954910188,1.57690111,2615.6,2615.2,5.84397458]
[1646954910435,1.57690111,2615.5,2615.2,5.84397458]
[1646954910640,1.57592405,2615.4,2615.2,2.34397458]
[1646954910838,0.70359391,2616.0,2615.2,1.04397458]
[1646954911039,1.06848069,2615.8,2615.2,0.08767458]
[1646954911239,1.06848069,2615.8,2615.2,0.08562591]
[1646954911440,4.20359391,2615.7,2615.0,1.1286]
[1646954911642,0.05307351,2615.6,2615.5,0.00204843]
[1646954911842,0.00214209,2615.3,2615.0,1.1286]
[1646954913042,0.00214209,2615.3,2614.8,3.38381]
[1646954913242,0.00214209,2615.3,2614.8,0.95651]
[1646954914043,0.00214209,2615.3,2614.7,0.07966256]
[1646954915095,0.00214209,2615.3,2614.7,1.0100914]
[1646954915386,0.00214209,2615.3,2614.9,0.06972316]
[1646954916190,0.00214209,2615.3,2614.9,1.02603626]
[1646954916391,0.00214209,2615.3,2615.1,0.07292371]
[1646954916592,0.00214209,2615.3,2615.2,0.46]
[1646954916792,0.00214209,2615.3,2615.2,0.76]
[1646954918832,0.0249302,2615.3,2615.2,0.76]
[1646954920737,0.0249302,2615.3,2615.2,0.46]
[1646954923982,0.04805121,2615.3,2615.2,0.46]
[1646954930787,1.62498931,2615.3,2615.2,0.46]
[1646954930988,0.04805121,2615.3,2615.2,0.46]
[1646954931189,0.04805121,2615.3,2615.1,0.00433257]
[1646954931687,0.04805121,2615.3,2615.0,0.3]
[1646954932091,0.04805121,2615.3,2615.1,0.00433184]
[1646954932690,1.5770052,2615.2,2615.1,0.00433184]
[1646954932931,1.5770052,2615.2,2614.9,1.50645]
[1646954933137,1.5770052,2615.2,2615.1,0.00433184]
[1646954933434,1.5270052,2615.2,2615.1,0.00433184]
[1646954934034,1.5270052,2615.2,2615.0,0.3]
[1646954934234,1.5270052,2615.2,2614.9,1.50645]
[1646954934434,1.5270052,2615.2,2615.0,0.00433188]
[1646954935234,1.5270052,2615.2,2614.9,1.50645]
[1646954935646,1.5270052,2615.2,2615.0,0.00433571]
[1646954936440,1.5270052,2615.2,2614.9,1.50645]
[1646954936696,1.5270052,2615.2,2615.0,0.00433571]
[1646954937788,1.5270052,2615.2,2614.9,1.50645]
[1646954937990,1.5270052,2615.2,2615.0,0.00433571]
[1646954938390,1.09679963,2615.3,2615.0,0.00433571]
[1646954938991,0.02309776,2615.1,2614.8,2.42043055]
[1646954939191,0.02309776,2615.1,2615.0,0.00433169]
[1646954940192,0.02309776,2615.1,2614.8,2.42043055]
[1646954940433,0.02309776,2615.1,2614.9,0.00433176]
[1646954940638,0.02309776,2615.1,2614.9,0.9347606]
[1646954940844,0.02309776,2615.1,2614.9,1.8911304]
[1646954941237,0.02309776,2615.1,2614.9,1.88679864]
[1646954941638,0.02309776,2615.1,2614.9,1.89113044]
[1646954942340,0.02309776,2615.1,2614.9,0.93476064]
[1646954942638,0.02309776,2615.1,2614.9,0.93042884]
[1646954942840,0.02309776,2615.1,2614.9,0.93476091]
[1646954943640,0.02309776,2615.1,2614.9,0.93042884]
[1646954943839,0.0458118,2615.1,2614.9,0.93042884]
[1646954944039,0.0458118,2615.1,2614.9,0.93476091]
[1646954944482,0.0458118,2615.1,2614.9,4.43476091]
[1646954944881,0.0458118,2615.1,2614.9,5.43042884]
[1646954945084,0.0458118,2615.1,2614.9,1.93476091]
[1646954945284,0.0458118,2615.1,2614.9,0.93476091]
[1646954946193,0.0458118,2615.1,2614.9,0.93042884]
[1646954946389,0.0458118,2615.1,2614.9,0.93476088]
[1646954947192,0.0458118,2615.1,2614.9,0.00433204]
[1646954947193,0.0909657,2615.1,2614.9,0.00433204]
[1646954947392,0.0909657,2615.1,2614.6,2.5235471]
[1646954947593,0.0909657,2615.1,2614.9,0.00433204]
[1646954948446,0.0458118,2615.1,2614.6,2.5235471]
[1646954948646,0.0458118,2615.1,2614.5,5.02902884]
[1646954948850,0.0458118,2615.1,2614.9,0.00433204]
[1646954949847,0.0458118,2615.1,2614.6,0.93042884]
[1646954949848,0.02456014,2615.0,2614.6,0.93042884]
[1646954950047,0.02456014,2615.0,2614.9,0.00433205]
[1646954950848,0.02456014,2615.0,2614.6,0.93042884]
[1646954951249,0.02456014,2615.0,2614.8,0.00433209]
[1646954952089,0.02456014,2615.0,2614.6,0.93042884]
[1646954952289,0.02456014,2615.0,2614.8,0.00433213]
[1646954953290,0.02456014,2615.0,2614.6,0.93042884]
[1646954953692,0.02456014,2615.0,2614.8,0.00433215]
[1646954954495,0.02456014,2615.0,2614.6,0.93042884]
[1646954954698,0.02456014,2615.0,2614.8,0.00433215]
[1646954955645,0.02456014,2615.0,2614.6,0.93042884]
[1646954956043,0.02456014,2615.0,2614.8,0.00433215]
[1646954956443,0.02456014,2615.0,2614.8,0.96074215]
[1646954956842,0.02456014,2615.0,2614.8,2.37772884]
[1646954957042,0.02456014,2615.0,2614.8,1.4473]
[1646954957242,0.02456014,2615.0,2614.8,2.38206111]
[1646954958041,0.02456014,2615.0,2614.8,2.37772884]
[1646954958243,0.02375111,2615.0,2614.8,2.37772884]
[1646954958444,0.02375111,2615.0,2614.8,2.38206111]
[1646954959045,0.02375111,2615.0,2614.8,3.33848311]
[1646954959291,0.02375111,2615.0,2614.8,3.33415084]
[1646954959489,0.02375111,2615.0,2614.8,3.33848311]
[1646954959689,0.0458118,2615.1,2614.9,6.13042884]
[1646954959690,0.02326291,2615.1,2614.9,6.13042884]
[1646954959888,0.02326291,2615.1,2615.0,4.4406049]
[1646954960086,0.02326291,2615.1,2615.0,1.4006049]
[1646954960287,0.02326291,2615.1,2615.0,0.46]
[1646954960892,0.02724546,2615.8,2615.1,1.7]
[1646954961093,1.57683325,2615.7,2615.2,1.2483]
[1646954961292,1.57683325,2615.7,2615.2,1.5483]
[1646954961795,1.57683325,2615.6,2615.2,1.5483]
[1646954961992,1.57683325,2615.5,2615.3,0.00433171]
[1646954962194,1.0521789,2616.0,2615.3,0.00433171]
[1646954962392,1.57682337,2615.9,2615.3,0.00433171]
[1646954963037,1.57682337,2615.9,2615.1,6.4646257]
[1646954963235,1.57682337,2615.9,2615.4,0.00433172]
[1646954964035,1.57682337,2615.9,2615.1,6.4646257]
[1646954964036,1.57682337,2615.9,2615.1,7.40497859]
[1646954964239,0.04581008,2615.7,2615.1,6.4646257]
[1646954964442,1.57682337,2615.6,2615.4,0.00433175]
[1646954965238,1.57682337,2615.6,2615.1,6.4646257]
[1646954965438,1.57682337,2615.6,2615.1,2.9646257]
[1646954965642,1.57682337,2615.6,2615.4,0.00433165]
[1646954966446,1.57682337,2615.6,2615.1,6.4646257]
[1646954966892,1.57682337,2615.6,2615.4,0.00433165]
[1646954967791,1.57682337,2615.6,2615.1,7.40497859]
[1646954967992,1.57682337,2615.6,2615.4,0.00433165]
[1646954969700,0.02191136,2615.5,2615.4,0.00433165]
[1646954970095,0.02191136,2615.5,2615.1,8.40497859]
[1646954970297,0.02191136,2615.5,2615.1,3.9646257]
[1646954970556,0.02191136,2615.5,2615.3,0.00433169]
[1646954971364,0.02191136,2615.5,2615.1,3.0083]